Cogmind - Beta 11 @@@ ROGUE MODE // 2022.03.20 @ 21:17:10 Player: Gris Result: Destroyed by G-34 Mercenary with Small Laser Performance ------------- Evolutions (0) 0 Regions Visited (2) 400 Robots Destroyed (36) 180 Value Destroyed (806) 806 Prototype IDs (2) 40 Alien Tech Used (0) 0 Bonus (0) 0 TOTAL SCORE: 1426 Bonus ------- None Cogmind --------- Core Integrity 0/250 Matter 285/300 Energy 96/100 System Corruption 0% Temperature Cool (7) Movement Walking (260) Ox2 Location -10/Mines Parts ------- > --- POWER (1) -------- (None) > --- PROPULSION (2) --- Aluminum Leg > --- UTILITY (2) ------ Large Storage Unit > --- WEAPON (2) ------- Small Laser Small Laser > --- INVENTORY (15) --- Ion Engine Ion Engine Ion Engine Heat Sink Terrain Scanner Improved Terrain Scanner Hardened Light Armor Plating Hardened Light Armor Plating Hardened Light Armor Plating Field Recycling Unit (0) Peak State ------------ > --- POWER ------------ Ion Engine > --- PROPULSION ------- Aluminum Leg Aluminum Leg > --- UTILITY ---------- Large Storage Unit Improved Terrain Scanner > --- WEAPON ----------- Particle Gun Grenade Launcher > --- INVENTORY -------- Ion Engine Ion Engine Ion Engine Heat Sink Terrain Scanner Improved Terrain Scanner Hardened Light Armor Plating Hardened Light Armor Plating Hardened Light Armor Plating Field Recycling Unit EM Pulse Gun EM Pulse Gun Small Laser Mining Laser [Rating: 12] Favorites ----------- Power Ion Engine Engine Ion Engine Propulsion Aluminum Leg Treads Light Treads Leg Aluminum Leg Utility Large Storage Unit Device Improved Terrain Scanner Storage Large Storage Unit Protection Hardened Light Armor Plating Weapon Particle Gun Energy Gun Particle Gun Ballistic Gun Light Assault Rifle Launcher Grenade Launcher Special Weapon Mining Laser Build | -11 -10 -10 ------- Run | Scr Mat Min Slots Evolved . | . . . Power . | . . . Propulsion . | . . . Utility . | . . . Weapon . | . . . Parts Attached 32 | 9 10 13 Power 5 | 3 1 1 Engine 5 | 3 1 1 Core . | . . . Reactor . | . . . Propulsion 5 | 2 2 1 Treads 2 | 2 . . Leg 3 | . 2 1 Wheel . | . . . Hover . | . . . Flight . | . . . Utility 7 | 1 5 1 Device 2 | . 1 1 Storage 2 | 1 1 . Processor . | . . . Hackware . | . . . Protection 3 | . 3 . Artifact . | . . . Weapon 15 | 3 2 10 Energy Gun 9 | . 2 7 Energy Cannon . | . . . Ballistic Gun 3 | 3 . . Ballistic Cannon . | . . . Launcher 2 | . . 2 Special Weapon 1 | . . 1 Impact Weapon . | . . . Slashing Weapon . | . . . Piercing Weapon . | . . . Special Melee Weapon . | . . . Unidentified Prototypes . | . . . Parts Lost 12 | . 1 11 Power 2 | . . 2 Propulsion 2 | . . 2 Utility 2 | . . 2 Weapon 6 | . 1 5 Highest Loss Streak 5 | . 1 5 To Critical Strikes . | . . . Average Slot Usage (%) 92 | . 93 90 Engine 12 | . 14 11 Treads 6 | . 10 . Leg 19 | . 13 27 Device 3 | . 1 7 Storage 14 | . 14 14 Protection 7 | . 10 2 Energy Gun 16 | . 15 18 Ballistic Gun 7 | . 11 . Launcher 2 | . . 5 Special Weapon 1 | . . 3 Naked Turns . | . . . Heaviest Build 35 | 11 35 35 Greatest Support 40 | 40 40 20 Greatest Overweight (x) 11 | 1 11 2 Average Overweight (x) . | . . 1 Largest Inventory Capacity 15 | 8 15 15 Average Capacity 13 | 7 13 15 Most Carried 15 | 7 9 15 Average Carried 8 | 3 6 11 Final Capacity 15 | 8 15 15 Final Carried 10 | 2 9 10 Class Distribution -------------------- 73% | Mutant 26% | Scavenger-Mutant Dominant Class ---------------- Mutant | -10/Materials Scavenger-Mutant | -10/Mines Resources | -11 -10 -10 ----------- Run | Scr Mat Min Matter Collected 705 | 189 297 219 Remotely . | . . . Salvage Created 860 | . 333 527 Parts 68 | . 23 45 Haulers Intercepted . | . . . Recyclers Shooed . | . . . Parts Field Recycled . | . . . Retrieved Matter . | . . . Parts Self-Destructed . | . . . Prevented . | . . . Kills | -11 -10 -10 ------- Run | Scr Mat Min Combat Hostiles Destroyed 29 | . 10 19 Guns 18 | . 10 8 AOE 11 | . . 11 Classes Destroyed 7 | . 4 3 Worker 2 | . 1 1 Builder 1 | . . 1 Tunneler 4 | . . 4 Watcher 2 | . 2 . Swarmer 8 | . 5 3 Grunt 19 | . 5 14 Assembled 2 | . . 2 Best Kill Streak 10 | . 8 10 Combat Bots Only 8 | . 8 7 Max Kills in Single Turn 4 | . 1 4 Gunslinging . | . . . Exploded 3 | . . 3 Melee . | . . . Uniques/NPCs Destroyed . | . . . Combat | -11 -10 -10 -------- Run | Scr Mat Min Damage Taken 1401 | . 581 820 Core 253 | . 119 134 Absorbed by Shields . | . . . Regen/Repaired (Parts) 10 | . 10 . Core Remaining (%) 100 | 100 . . Volleys Fired 104 | . 45 59 Largest 2 | . 2 2 Hottest 105 | . 105 105 Shots Fired 148 | . 82 66 Gun 134 | . 82 52 Cannon . | . . . Launcher 14 | . . 14 Special . | . . . Kinetic 58 | . 58 . Thermal 41 | . 9 32 Explosive 14 | . . 14 Electromagnetic 35 | . 15 20 Robot Hit Streak 5 | . 5 5 Robot Miss Streak 12 | . 12 5 Penetration Max . | . . . Secondary Targets 3 | . 3 . Max Gunslinging Chain 1 | . 1 . Shots Hit Robots 70 | . 36 34 Core Hits 59 | . 19 40 Critical Kills . | . . . Critical Parts Destroyed 1 | . 1 . Critical Strikes 2 | . 1 1 Burn 1 | . . 1 Destroy 1 | . 1 . Melee Attacks . | . . . Impact . | . . . Slashing . | . . . Piercing . | . . . Sneak Attacks . | . . . Combat Hostiles . | . . . Follow-up Attacks . | . . . Damage Inflicted 1741 | . 453 1288 Guns 784 | . 449 335 Cannons . | . . . Explosions 951 | . . 951 Melee . | . . . Ramming 6 | . 4 2 Kinetic 267 | . 267 . Thermal 274 | . 49 225 Explosive 951 | . . 951 Electromagnetic 243 | . 133 110 Impact . | . . . Slashing . | . . . Piercing . | . . . Highest Corruption . | . . . Average Corruption . | . . . Corruption Purged . | . . . Corruption Blocked . | . . . Overload Shots . | . . . Overflow Damage 6 | . . 6 Projectiles . | . . . Explosions 6 | . . 6 Melee . | . . . Knockbacks . | . . . Impact . | . . . Kinetic . | . . . Secondary . | . . . Self-Inflicted Damage 122 | . . 122 Shots 5 | . . 5 Rammed . | . . . Targets Rammed 2 | . 1 1 Kicked 2 | . 1 1 Crushed . | . . . Highest Temperature 286 | . 120 286 Average Temperature 72 | . 33 110 Received Heat Transfer 418 | . 90 328 Effects 3 | . . 3 Interference 3 | . . 3 Siege Activations . | . . . Robots Corrupted . | . . . Combat Hostiles . | . . . Parts Fried 1 | . 1 . Impact Corruptions . | . . . Robots Melted . | . . . Combat Hostiles . | . . . Parts Melted 1 | . . 1 Heat Transferred 717 | . 111 606 Parts Sabotaged . | . . . Parts Stolen . | . . . Parts Stripped . | . . . Power Chain Reactions . | . . . Missiles Intercepted . | . . . Alert | -11 -10 -10 ------- Run | Scr Mat Min Peak Influence 266 | . 120 266 Initial 8 | . . 8 Average 71 | . 46 115 Maximum Alert Level 1 | . . 1 Low Security (%) 89 | 100 100 72 Level 1 10 | . . 27 Level 2 . | . . . Level 3 . | . . . Level 4 . | . . . Level 5 . | . . . High Security . | . . . Max Security . | . . . Squads Dispatched 1 | . 1 . Investigation 1 | . 1 . Extermination . | . . . Reinforcement . | . . . Assault . | . . . Garrison . | . . . Intercept . | . . . Searches Triggered . | . . . Construction Impeded . | . . . Haulers Reinforced . | . . . Active Scanning Responses . | . . . Cargo Convoy Interrupts . | . . . Stealth | -11 -10 -10 --------- Run | Scr Mat Min Distress Signals . | . . . Communications Jammed . | . . . Distress Signals . | . . . Times Spotted 56 | . 33 23 Peak Tracking Total 9 | . 9 7 Tactical Retreats 4 | . 3 1 Traps | -11 -10 -10 ------- Run | Scr Mat Min Traps Triggered . | . . . Indirectly . | . . . Trap Hack Attempts . | . . . Triggered . | . . . Disarmed . | . . . Reprogrammed . | . . . Reused . | . . . Traps Extracted . | . . . Installed . | . . . Triggered . | . . . Machines | -11 -10 -10 ---------- Run | Scr Mat Min Machines Disabled . | . . . Max in Single Turn . | . . . Machines Sabotaged . | . . . Garrisons Compromised . | . . . Overloaded Fab Kills . | . . . Hacking | -11 -10 -10 --------- Run | Scr Mat Min Machines Accessed 5 | . 5 . Terminals 4 | . 4 . Fabricators . | . . . Repair Stations 1 | . 1 . Recycling Units . | . . . Scanalyzers . | . . . Garrison Access . | . . . Total Hacks 18 | . 18 . Successful 12 | . 12 . Failed 6 | . 6 . Catastrophic . | . . . Database Lockouts . | . . . Manual . | . . . Terminals 14 | . 14 . Fabricators . | . . . Repair Stations 4 | . 4 . Recycling Units . | . . . Scanalyzers . | . . . Garrison Access . | . . . Terminal Hacks 10 | . 10 . Record 3 | . 3 . Prototype ID Bank 1 | . 1 . Alert Level 3 | . 3 . Locate Traps 2 | . 2 . Transport Status 1 | . 1 . Fabricator Hacks . | . . . Repair Station Hacks 2 | . 2 . Scan Component 1 | . 1 . Repair 1 | . 1 . Recycling Unit Hacks . | . . . Scanalyzer . | . . . Garrison Access Hacks . | . . . Unauthorized Hacks . | . . . Terminals . | . . . Fabricators . | . . . Repair Stations . | . . . Recycling Units . | . . . Scanalyzers . | . . . Garrison Access . | . . . Data Cores Recovered . | . . . Used . | . . . Hacking Detections 5 | . 5 . Full Trace Events 3 | . 3 . Feedback Events . | . . . Feedback Blocked . | . . . Robot Schematics Acquired . | . . . Robots Built . | . . . Authchips . | . . . Time . | . . . Total Robot Build Rating . | . . . Part Schematics Acquired . | . . . Parts Built . | . . . Authchips . | . . . Time . | . . . Total Part Build Rating . | . . . Parts Repaired 1 | . 1 . Time 26 | . 26 . Parts Recycled . | . . . Recycled Matter . | . . . Retrieved Matter . | . . . Retrieved Components . | . . . Parts Scanalyzed . | . . . Part Schematics Acquired . | . . . Parts Damaged . | . . . Bothacking | -11 -10 -10 ------------ Run | Scr Mat Min Used RIF Installer . | . . . Robots Hacked . | . . . Non-combat . | . . . Combat . | . . . Robot Hacks Applied . | . . . Relay Couplers Released . | . . . Fabnet Peak Effective % . | . . . Robots Rewired . | . . . Allies Hacked . | . . . Hacks Repelled . | . . . Allies | -11 -10 -10 -------- Run | Scr Mat Min Total Allies . | . . . Largest Group . | . . . Highest-Rated Group . | . . . Highest-Rated Ally . | . . . Total Orders . | . . . Ally Attacks . | . . . Total Damage . | . . . Kills . | . . . Allies Corrupted . | . . . Allies Melted . | . . . Intel | -11 -10 -10 ------- Run | Scr Mat Min Robot Analysis Total . | . . . Derelict Logs Recovered 1 | . . 1 Drone Launches . | . . . Drone Recoveries . | . . . Exploration | -11 -10 -10 ------------- Run | Scr Mat Min Turns Passed 3174 | 66 1927 1181 Spaces Moved 1454 | 41 910 503 Core 30 | 19 11 . Treads 438 | 22 416 . Legs 986 | . 483 503 Wheels . | . . . Hover . | . . . Flight . | . . . Fastest Speed 50 | 50 160 190 Average Speed 190 | 120 193 190 Slowest Speed 600 | 160 600 260 Overloaded Moves . | . . . Propulsion Burnouts . | . . . Robots Hopped . | . . . Cave-ins Triggered . | . . . Exploration Rate (%) 53 | 3 95 63 Regions Visited 2 Branch Regions 1 Pre-discovered Areas 1 | . . 1 Known Exits Taken . | . . . Unknown Exits Taken 2 | 1 1 . Scrap Searched 1 | . . 1 Spaces Dug . | . . . Terrain Destroyed 76 | . . 76 Melee . | . . . Projectile . | . . . AOE 76 | . . 76 Terrain Rammed . | . . . Walls Destroyed . | . . . Machines Disabled . | . . . Actions | -11 -10 -10 --------- Run | Scr Mat Min Total 1715 | 56 1003 656 Wait 89 | . 19 70 Move 1452 | 40 909 503 Hop . | . . . Pick Up 30 | 7 14 9 Fast Attach 1 | 1 . . Attach 21 | 5 7 9 Detach 1 | . . 1 Swap 10 | 3 3 4 Drop 5 | . 5 . Fire 104 | . 45 59 Melee . | . . . Ram . | . . . Kick 2 | . 1 1 Crush . | . . . Escape Stasis . | . . . Rewire . | . . . Trap . | . . . Miscellaneous . | . . . Route ------- -11/Scrapyard -10/Materials (discovered 4 exits: [*Mat x3] / [*Min]) -10/Mines History --------- Turn | Location | Event 8 | -11/Scrapyard | Discovered new exit (range 14) 67 | -11/Scrapyard | Entered Materials 342 | -10/Materials | Build established: Mutant 350 | -10/Materials | Discovered new exit (range 6) 610 | -10/Materials | Repaired Lgt. Treads? 637 | -10/Materials | Discovered new exit (range 9) 936 | -10/Materials | Destroyed 8 combat bots 1373 | -10/Materials | Discovered new exit (range 7) 1528 | -10/Materials | Discovered new exit (range 16) 1994 | -10/Materials | Entered Mines 2008 | -10/Mines | Learned Materials interactive machine intel 2096 | -10/Mines | Excavation squad dispatched 2096 | -10/Mines | A large section of the Mines collapsed 2097 | -10/Mines | Core integrity fell below 50% 2346 | -10/Mines | Excavation squad dispatched 2565 | -10/Mines | Build established: Scavenger-Mutant 2596 | -10/Mines | Excavation squad dispatched 2647 | -10/Mines | Destroyed 7 combat bots 2684 | -10/Mines | Joined a pair of Derelicts in attacking an 0b10 outpost 2710 | -10/Mines | Found a hidden stash of uninstalled traps 2846 | -10/Mines | Excavation squad dispatched 2991 | -10/Mines | Learned location of Storage (-8) 3096 | -10/Mines | Excavation squad dispatched 3150 | -10/Mines | Core integrity fell below 20% 3174 | -10/Mines | Lost 5 parts (1p1n3w) 3175 | -10/Mines | Destroyed by G-34 Mercenary with Small Laser Last Messages --------------- A derelict emerges from the shadows: "Are any of them following you? I'm here trying to lose some heat after our second raid on Storage failed. Whatever you do stay away from that place, they've tightened security following our previous successful raids." World map updated: -8/Storage. HT-R83(g): "We scattered so the Unaware couldn't effectively use their advantage in numbers, and I suggest you do the same." HT-R83(g) slips back into the shadows. ALERT: Derelict activity in mines confirmed. Dispatching additional escorted excavation squad. Ion Engine destroyed. Particle Gun destroyed. EM Pulse Gun destroyed. Aluminum Leg destroyed. G-34 Mercenary destroyed. K-01 Serf collects debris. EM Pulse Gun destroyed. G-34 Mercenary destroyed. Kicked T-07 Excavator out of the way. Acquired Sml. Laser. Map ----- +----------------------------------------------------+ | ?????????????????????????????????#??#????????##"%# | | ???????????????????????????????#??????????? ??#### | | ?????????????????????????????????????##???? ???## | | ????????????????????????????????????? ????????## | | ?????????????????????????????#??#???????????### | | ??????????????????? ???????????????#? ????## | | ??????????????????? ???#???????? ???? ??### | | ???????????????????# ???????????? ??? ?## ## | | ?#####????????????## ????#?#??????????## #### | | ?# ##???????????# ??????#??? ????## #?### | | ?# ###?????#???# ???????? ?? ?#??# ##???? | | ## ##????????# ???????# ####### ###???? | | # """ ##??#????# ??????## ####### ##????? | | # """ ## ##????# #???#??# =% ==* ###### | | # """ #????# #?#??#?# [ = = ## | | #????# $ ##?##########[= | | ## #### ##???## r##??#???##*## [*= | | #?# #????##??### ############ ### | | ##??# #??????????# =#### | | ???## ########???## # #### | | ???# ##???#### ############ ###?### | | ???# ###????###r#?????################## | | ???## ##### #########%#?#?### #???# | | ????####?#### #######g####### """ """ #???? | | ????????#?#?## t %=% """ """ #??## | | ?????????????## t*@%[!#### """ """ #???# | | ??????????#???## ####%####% #?## #???# | | ?????????#?????##### #!# ##= #??# """ """ #???# | | ?#??????????#?????# # #### ##?# """ """ ##??# | | ????????????########## ### #??# """ """ #???# | | ????????????# " ## ##?# #???# | | ???#???????## ########## ### #???# | | ????#??#??### ###### # ############ ##???# | | ?#??????### = #### # = ########### ##???# | | ???????## # " ### # ##???# | | ??????? ### " ##### ####### #### ###### | | ??????# #"#%= ##### #?#???# #?# | | ???????# ###* # ## ##????# #?# ###### | | ????????? #" "### # ###### ### #????# | | ?????????? ###"# # ## ## ##?#??? | | ????????????#??## # ######### #????? | | ??????????#?????# # ####???##### #??### | | ??????????????#?# # = ###??????# #### | | ????????????????# # #???????# ## | | ????????????????#"# ####???????# | | ????????????????## ###??????????##### | | ????????????#???## ##???????????????# | | ?????????????????#####????????????????# ## | | ??????????????????????????????????????## ######? | | ???????????????????????????????????????####??????? | +----------------------------------------------------+ Best States ------------- Heat Dissipation 25 Energy Generation 10 Energy Capacity 250 Matter Stores 300 Matter Capacity 300 Sight Range 16 Terrain Scan Range 16 Terrain Scan Density 10 Armor Coverage 150 Evasion (%) 50 Recoil Reduction 2 Item Schematics ----------------- None Robot Schematics ------------------ None Fabricated ------------ Nothing Alien Tech Used ----------------- None Achievements -------------- Let's See Who's Tougher Challenges ------------ None Game ------ Seed DisruptorTrapDeconstructor Manual? 0 Play Time 00:53:35 Cumulative 4.3 hours Start 2022.03.19 @ 22:22:31 End 2022.03.20 @ 21:17:10 Sessions 3 Manual Loads 0 Difficulty Rogue Special Mode None Game No. 10 Rogue 10 Adventurer 0 Explorer 0 Win Type - Total 0 Types 0/0/0/0/0/0/0/0/0 Lore% 2 Gallery% 4 Achievement% 6 Wizard Run 0 Options --------- ASCII 0 Keyboard 0 Movement Mouse Keybinds 0 Fullscreen 1 Font 18/SmallcapsGlow Map View 76x50 Tactical HUD 0 Map Filters NONE Filters NONE Steam 1 RUN: d008e84e-bd76-462e-9511-f512ba08c040